[Event "44th Chess Olympiad Women 2022"]
[Site "Chennai"]
[Date "2022.08.05"]
[Round "7.4"]
[White "Antova, Gabriela"]
[Black "Malicka, Maria"]
[Result "1/2-1/2"]
[WhiteElo "2275"]
[BlackElo "2393"]
[Annotator "TA"]
[PlyCount "190"]
[EventDate "2022.??.??"]
[TimeControl "60"]

{[%evp 14,190,1,3,10,22,11,10,38,14,23,28,31,48,33,-77,-69,-108,-37,-153,0,0,0,
0,0,0,18,-28,25,18,27,16,73,39,39,47,44,26,35,32,17,29,25,14,14,0,0,0,0,0,0,0,
0,0,0,0,0,0,0,0,0,0,0,0,0,0,0,0,0,0,0,0,0,0,0,0,0,0,0,0,0,0,0,0,0,0,0,0,0,0,0,
0,0,0,0,0,0,0,0,0,0,0,0,0,8,8,8,8,8,8,8,8,8,0,0,0,0,0,0,0,0,0,8,8,8,8,8,8,8,8,
8,8,8,0,8,0,8,0,0,0,0,0,0,0,8,8,8,8,8,8,8,8,8,8,8,0,0,0,8,0,8,0,8,8,8,0,8,8,8,
8,8,0,8,0,8,8,8,8,8]} 1. d4 {[%emt 0:00:03]} Nf6 {[%emt 0:00:03]} 2. Nf3 {
[%emt 0:00:08]} e6 {[%emt 0:00:12]} 3. Bg5 {[%emt 0:00:13]} h6 {[%emt 0:02:39]}
4. Bh4 {[%emt 0:04:13]} b6 {[%emt 0:02:26]} 5. Nbd2 {[%emt 0:04:19]} Bb7 {
[%emt 0:00:41]} 6. e3 {[%emt 0:00:23]} c5 {[%emt 0:01:05]} 7. c3 {[%emt 0:00:
00]} Be7 {[%emt 0:00:16]} 8. Bd3 {[%emt 0:01:26]} g5 {[%emt 0:06:21] A46:1 d4
Nf6 2 Nf3 e6: Torre, London and Colle Systems.} 9. Bg3 {[%emt 0:00:58]} g4 {
[%emt 0:00:27]} 10. Ne5 {[%emt 0:03:42]} ({Of course not} 10. Nh4 Rg8 11. h3
Nh5 12. hxg4 Nxg3 13. fxg3 Qc7 $15) 10... h5 {[%emt 0:04:48] [#]} 11. Nec4 $146
{[%emt 0:14:08]} ({Predecessor:} 11. f3 d6 12. Nec4 b5 13. Na3 b4 14. cxb4 cxd4
15. exd4 h4 16. Bf2 h3 17. g3 gxf3 18. Nxf3 {1-0 (28) Vachier Lagrave,M (2778)
-Vlassov,N (2352) Chess.com INT 2020}) 11... d6 {[%emt 0:12:10]} 12. dxc5 $1 {
[%emt 0:13:09]} dxc5 {[%emt 0:12:08]} 13. Qc2 {[%emt 0:03:38]} (13. Qa4+ $2 b5
14. Qxb5+ Bc6 $17) 13... h4 {[%emt 0:00:53]} 14. Bxb8 {[%emt 0:01:32]} (14. Bf4
$14) 14... Qxb8 {[%emt 0:01:52]} 15. Ne4 {[%emt 0:07:03]} Qc7 {[%emt 0:11:34]}
(15... Nd5 $1 $17 {White must now prevent ...Qc7.} 16. O-O-O Qc7) 16. O-O-O {
[%emt 0:03:16]} (16. Nxf6+ $1 $15 Bxf6 17. Be4) 16... O-O-O $2 {[%emt 0:00:45]}
(16... Nd5 $1 $17 {aiming for ...a6.} 17. a4 a6) 17. Nxf6 $11 {[%emt 0:01:12]}
Bxf6 {[%emt 0:00:02]} 18. Be4 {[%emt 0:00:15]} Be7 {[%emt 0:11:12]} 19. h3 {
[%emt 0:13:58]} g3 {[%emt 0:04:11]} 20. f3 {[%emt 0:03:49]} (20. fxg3 {should
be considered.} hxg3 21. Bxb7+ Qxb7 22. e4) 20... f5 {[%emt 0:04:17]} (20... b5
$142 21. Bxb7+ Qxb7) 21. Bxb7+ {[%emt 0:00:38]} Qxb7 {[%emt 0:00:02]} 22. a4 {
[%emt 0:06:28]} Rd5 {[%emt 0:01:43]} (22... Rxd1+ $11 {remains equal.} 23. Rxd1
Rd8) 23. Rxd5 {[%emt 0:01:57]} Qxd5 {[%emt 0:00:05]} 24. Qb3 {[%emt 0:04:17]} (
24. b3 $5 {[%cal Rh1d1]}) 24... Rd8 {[%emt 0:03:45]} 25. Rd1 {[%emt 0:00:16]}
Qxd1+ {[%emt 0:02:10]} 26. Qxd1 {[%emt 0:00:02]} Rxd1+ {[%emt 0:00:04]} 27.
Kxd1 {[%emt 0:00:06] Endgame KB-KN} Kc7 {[%emt 0:00:04]} 28. b3 {[%emt 0:03:48]
} a6 {[%emt 0:02:30] The position is equal.} 29. Ke2 {[%emt 0:00:00]} b5 {
[%emt 0:00:32]} 30. axb5 {[%emt 0:00:43]} axb5 {[%emt 0:00:01]} 31. Na3 {
[%emt 0:02:29]} Kc6 {[%emt 0:05:51]} 32. c4 {[%emt 0:00:35]} bxc4 {[%emt 0:00:
07]} 33. bxc4 {[%emt 0:00:04]} Bf6 {[%emt 0:02:59]} 34. Kd3 {[%emt 0:00:13]}
Kd6 {[%emt 0:00:31]} 35. Nb5+ {[%emt 0:01:15]} Kc6 {[%emt 0:00:00]} 36. Na3 {
[%emt 0:01:30]} Kd6 {[%emt 0:00:06]} 37. Nc2 {[%emt 0:01:08]} Bg7 {[%emt 0:01:
56]} 38. Ne1 {[%emt 0:00:56]} Bf6 {[%emt 0:02:51]} 39. Kc2 {[%emt 0:01:50]} Bd8
{[%emt 0:02:50]} 40. f4 {[%emt 0:02:04]} e5 {[%emt 0:01:21]} 41. fxe5+ {
[%emt 0:08:13]} Kxe5 {[%emt 0:00:05] Strongly threatening ...Ke4.} 42. Kd3 {
[%emt 0:00:07]} Ke6 {[%emt 0:07:45]} 43. Nf3 {[%emt 0:00:22]} Be7 {[%emt 0:02:
28]} 44. e4 {[%emt 0:03:00]} f4 {[%emt 0:06:13]} 45. Kc2 {[%emt 0:00:00]} Kd6 {
[%emt 0:00:40]} 46. Kb3 {[%emt 0:03:15]} Bd8 {[%emt 0:02:54]} 47. Ka4 {[%emt 0:
01:11]} Kc6 {[%emt 0:00:32]} 48. Ka3 {[%emt 0:04:53]} Kd6 {[%emt 0:00:21]} 49.
Kb3 {[%emt 0:00:12]} Kd7 {[%emt 0:03:02]} 50. Ka4 {[%emt 0:00:00]} Kc6 {
[%emt 0:00:04]} 51. Kb3 {[%emt 0:02:04]} Kd7 {[%emt 0:00:19]} 52. Kc2 {[%emt 0:
00:07]} Ke6 {[%emt 0:00:32]} 53. Kd1 {[%emt 0:00:20]} Kd6 {[%emt 0:01:03]} 54.
Ke2 {[%emt 0:00:16]} Be7 {[%emt 0:01:03]} 55. Kd3 {[%emt 0:00:00]} Ke6 {
[%emt 0:00:05]} 56. Kc3 {[%emt 0:00:27]} Kd6 {[%emt 0:00:16]} 57. Kc2 {[%emt 0:
01:54]} Bd8 {[%emt 0:02:21]} 58. Kb2 {[%emt 0:01:19]} Bf6+ {[%emt 0:01:04]} 59.
e5+ {[%emt 0:01:35]} Bxe5+ {[%emt 0:00:18]} 60. Kc2 {[%emt 0:00:00] And now
Kd3 would win.} Bf6 {[%emt 0:07:41]} 61. Kd3 {[%emt 0:00:00]} Kc6 {[%emt 0:00:
41]} 62. Ke4 {[%emt 0:00:28]} Kb6 $1 {[%emt 0:00:02]} 63. Kxf4 {[%emt 0:01:00]}
Ka5 $1 {[%emt 0:00:01]} 64. Kf5 {[%emt 0:01:35]} Bd8 {[%emt 0:00:37]} 65. Kg4 {
[%emt 0:01:06]} Kb4 {[%emt 0:00:07]} 66. Nxh4 {[%emt 0:00:15]} Kxc4 {[%emt 0:
01:19]} 67. Nf3 {[%emt 0:00:34]} Bc7 {[%emt 0:00:00]} 68. h4 {[%emt 0:00:12]}
Kd5 {[%emt 0:00:02]} 69. h5 {[%emt 0:00:14] Hoping for h6.} Ke6 {[%emt 0:01:05]
} 70. Nd2 {[%emt 0:00:50]} Kf7 {[%emt 0:00:00]} 71. Nc4 {[%emt 0:00:31]} Kg7 {
[%emt 0:00:12]} 72. Ne3 {[%emt 0:00:05]} Kh7 {[%emt 0:00:24]} 73. Kg5 {[%emt 0:
00:51]} Bd8+ {[%emt 0:00:51]} 74. Kg4 {[%emt 0:00:08]} Bc7 {[%emt 0:00:02]} 75.
Nc4 {[%emt 0:00:50]} Kh6 {[%emt 0:00:00]} 76. Nd2 {[%emt 0:00:21]} Kh7 {
[%emt 0:00:31]} 77. Nc4 {[%emt 0:00:29]} Kh6 {[%emt 0:00:04]} 78. Ne3 {[%emt 0:
00:11]} Kh7 {[%emt 0:00:22]} 79. Nf5 {[%emt 0:01:00]} c4 {[%emt 0:00:47]} 80.
Kf3 {[%emt 0:00:02]} ({Don't blunder} 80. Nxg3 $2 Bxg3 81. Kf3 {[#]} c3 $1 82.
Ke2 Kh6 83. Kd3 Be5 84. Ke3 Bd4+ $1 85. Kd3 Kxh5 $1 86. Kc2 Kg4 87. Kc1 Kg3 88.
Kb1 Kxg2 89. Kc2 Kg3 90. Kd1 Kf4 91. Kc1 Ke3 92. Kc2 Ke2 93. Kb1 Kd3 94. Kc1
Be3+ 95. Kb1 c2+ 96. Ka2 c1=Q 97. Kb3 Qc4+ 98. Kb2 Qc2+ 99. Ka3 Bc5#) 80... c3
{[%emt 0:00:53] ( -> ...c2)} 81. Ke2 {[%emt 0:00:04]} Be5 {[%emt 0:00:25]} 82.
Kd3 {[%emt 0:00:06]} Kg8 {[%emt 0:00:32]} 83. Ne3 {[%emt 0:00:37]} (83. h6 {
is interesting.} Kf7 84. h7 Kg6 85. Ne3) 83... Kh7 {[%emt 0:01:13]} 84. Ke4 {
[%emt 0:00:33]} Bg7 {[%emt 0:00:34]} 85. Kd3 {[%emt 0:01:13]} Be5 {[%emt 0:00:
16]} 86. Nf5 {[%emt 0:00:00]} (86. h6 $5) 86... Kg8 {[%emt 0:00:20]} 87. Ne3 {
[%emt 0:00:38]} (87. h6 {with more complications.} Kf7 88. h7 Kg6 89. Ne3)
87... Kh7 {[%emt 0:00:08]} 88. Kc2 {[%emt 0:00:14]} Bg7 {[%emt 0:01:01]} 89.
Kd3 {[%emt 0:01:01]} Be5 {[%emt 0:00:21]} 90. Nc4 {[%emt 0:00:34]} Bh8 {
[%emt 0:01:05]} 91. Nd6 {[%emt 0:00:00]} Be5 {[%emt 0:00:33]} 92. Nf5 {[%emt 0:
00:50]} Kg8 {[%emt 0:00:12]} 93. Ne3 {[%emt 0:00:38]} Kh7 {[%emt 0:00:06]} 94.
Nd5 {[%emt 0:00:24]} Kh6 {[%emt 0:00:27]} 95. Nxc3 {[%emt 0:00:08]} Kxh5 {
[%emt 0:00:08] Weighted Error Value: White=0.13 (very precise) /Black=0.15 
(very precise)} 1/2-1/2

[Event "44th Chess Olympiad Women 2022"]
[Site "Chennai"]
[Date "2022.08.05"]
[Round "7.4"]
[White "Kashlinskaya, Alina"]
[Black "Salimova, Nurgyul"]
[Result "0-1"]
[WhiteElo "2505"]
[BlackElo "2416"]
[Annotator "TA"]
[PlyCount "110"]
[EventDate "2022.??.??"]
[TimeControl "60"]

{[%evp 29,110,42,55,47,54,53,50,47,21,50,42,3,16,16,41,59,71,67,66,5,8,0,51,58,
56,56,56,55,86,88,107,70,128,39,90,0,0,0,3,0,0,-446,-445,-497,-504,-478,-491,
-531,-628,-4794,-3692,-2915,-2668,-29956,-29957,-29957,-29958,-5193,-29957,
-29951,-5093,-29970,-29971,-29971,-29971,-29981,-29982,-29982,-29983,-29983,
-29984,-29984,-29985,-29985,-29986,-29986,-29987,-29987,-29988,-29988,-29989,
-29995,-29996]} 1. d4 {[%emt 0:00:03] Ganguly,Surya} d5 {[%emt 0:00:13]} 2. c4
{[%emt 0:00:21]} e6 {[%emt 0:00:17]} 3. Nf3 {[%emt 0:00:21]} Nf6 {[%emt 0:00:
00]} 4. Nc3 {[%emt 0:00:15]} c6 {[%emt 0:00:37]} 5. Bg5 {[%emt 0:00:16]} dxc4 {
[%emt 0:00:47]} 6. e4 {[%emt 0:00:15][%cal Ye2e4,Ye4e5]} b5 {[%emt 0:00:00]} 7.
e5 {[%emt 0:00:16]} h6 {[%emt 0:00:07]} 8. Bh4 {[%emt 0:00:06]} g5 {[%emt 0:00:
07]} 9. Nxg5 {[%emt 0:00:13]} hxg5 {[%emt 0:00:07]} 10. Bxg5 {[%emt 0:00:04]}
Be7 {[%emt 0:00:11]} 11. exf6 {[%emt 0:00:18]} Bxf6 {[%emt 0:00:00]} 12. Bxf6 {
[%emt 0:00:28]} Qxf6 {[%emt 0:00:06]} 13. g3 {[%emt 0:00:13]} Na6 {[%emt 0:01:
16]} 14. Bg2 {[%emt 0:00:13]} Bb7 {[%emt 0:00:11]} 15. Ne4 {[%emt 0:00:22]} Qe7
{[%emt 0:00:55]} 16. O-O {[%emt 0:00:20] D44: Semi-Slav: Botvinnik System.}
O-O-O {[%emt 0:00:52]} 17. h4 {[%emt 0:00:44]} c5 {[%emt 0:00:00]} 18. a4 $1 {
[%emt 0:00:21] White is slightly better.} Rxd4 {[%emt 0:00:00]} 19. Qe2 {
[%emt 0:00:10]} b4 {[%emt 0:00:11]} 20. Rac1 {[%emt 0:00:10]} Bd5 {[%emt 0:02:
41] [#]} 21. Rfe1 $146 {[%emt 0:03:47]} ({Predecessor:} 21. Rfd1 Rxd1+ 22. Rxd1
Rd8 23. Rc1 Nb8 24. Qe3 Nc6 25. Nxc5 Qf6 26. b3 c3 27. Qe2 {0-1 (37) Melkumyan,
H (2660)-Shankland,S (2722) Batumi 2018 CBM 187 [Ganguly, Surya]}) 21... Nb8 {
[%emt 0:16:54]} 22. Nd2 {[%emt 0:12:21]} Bxg2 {[%emt 0:00:00]} 23. Kxg2 {
[%emt 0:00:23]} Qb7+ {[%emt 0:01:08]} 24. Nf3 {[%emt 0:23:54]} (24. f3 $14)
24... Qd5 $1 $11 {[%emt 0:01:47]} 25. Qe5 {[%emt 0:06:28]} Qxe5 {[%emt 0:02:24]
} (25... Rh5 $11 26. Qxd5 exd5) 26. Nxe5 $14 {[%emt 0:06:01]} Nd7 {[%emt 0:04:
12]} 27. Rxc4 {[%emt 0:02:49]} Rxc4 {[%emt 0:08:25]} 28. Nxc4 {[%emt 0:00:19]
Endgame aiming for Nd6+. KRN-KRN} Kc7 {[%emt 0:00:24] Prevents Nd6.} 29. a5 {
[%emt 0:08:51]} Nb8 {[%emt 0:08:04]} 30. Ne5 {[%emt 0:00:00]} Rh7 {[%emt 0:01:
38]} ({Black should try} 30... f6 $14 31. Ng4 f5) 31. Rd1 {[%emt 0:08:29]} (31.
Nf3 $16) 31... Nc6 {[%emt 0:18:48]} (31... f6 $14 32. Nc4 Nc6) 32. Nxc6 {
[%emt 0:13:03]} (32. Rd7+ $16 Kc8 33. Rxf7 Rxf7 34. Nxf7) 32... Kxc6 $16 {
[%emt 0:00:07] KR-KR} 33. Kf3 {[%emt 0:00:04]} f6 {[%emt 0:00:00]} 34. Ke3 {
[%emt 0:01:44]} Kb5 {[%emt 0:01:36]} 35. Rd8 $2 {[%emt 0:01:11] White is on
the road to losing.} (35. Rd6 $11) 35... Ka4 $1 $19 {[%emt 0:02:50]} 36. Kd2 {
[%emt 0:02:28]} Kb3 {[%emt 0:00:50]} 37. Kc1 {[%emt 0:00:00]} c4 {[%emt 0:00:
12] Prevents Rd3+. Threatens to win with ...Rh5.} 38. Rd6 {[%emt 0:03:40]} Rh5
{[%emt 0:00:38]} 39. Rxe6 {[%emt 0:01:43]} Rxa5 {[%emt 0:00:40]} 40. Re3+ {
[%emt 0:01:20]} c3 {[%emt 0:02:08]} 41. bxc3 {[%emt 0:30:03]} bxc3 {[%emt 0:04:
54][%cal Ra5a1]} 42. Kb1 {[%emt 0:00:00]} Rd5 {[%emt 0:00:58][%cal Rd5d1]} 43.
Kc1 {[%emt 0:00:00]} a5 {[%emt 0:03:02]} 44. Re6 {[%emt 0:00:00]} Rb5 $1 {
[%emt 0:01:25] ( -> ...a4)} 45. h5 {[%emt 0:00:00]} a4 $1 {[%emt 0:01:54]
Black mates.} ({Worse is} 45... Rxh5 46. Rb6+ Kc4 47. Kc2 $11) 46. h6 {[%emt 0:
00:00]} a3 {[%emt 0:01:43]} 47. h7 {[%emt 0:01:12] [#]} a2 $1 {[%emt 0:00:15]
[%cal Ra2a1]} ({Stronger than} 47... Rh5 48. Rb6+ Kc4 49. Kc2 $17 (49. Rc6+ Kb3
$17)) 48. Ra6 {[%emt 0:00:01]} Rh5 {[%emt 0:02:03][%cal Rh5h1]} 49. Rb6+ {
[%emt 0:00:05]} Kc4 {[%emt 0:01:36]} 50. Ra6 {[%emt 0:00:00]} a1=Q+ {[%emt 0:
01:45]} 51. Rxa1 {[%emt 0:00:03]} Kd3 {[%emt 0:00:16][%cal Rh5h1]} 52. Kb1 {
[%emt 0:00:42]} Rxh7 {[%emt 0:00:21]} 53. Ra3 {[%emt 0:00:00]} Kd2 {[%emt 0:01:
03]} 54. Ra2+ {[%emt 0:00:56] [#]} Kd1 $1 {[%emt 0:00:00]} 55. f4 {[%emt 0:00:
15]} Rb7+ {[%emt 0:00:06] Weighted Error Value: White=0.69/Black=0.06 
(flawless)} 0-1

[Event "44th Chess Olympiad Women 2022"]
[Site "Chennai"]
[Date "2022.08.05"]
[Round "7.4"]
[White "Kiolbasa, Oliwia"]
[Black "Krasteva, Beloslava"]
[Result "1-0"]
[WhiteElo "2376"]
[BlackElo "2249"]
[Annotator "TA"]
[PlyCount "119"]
[EventDate "2022.??.??"]
[TimeControl "60"]

{[%evp 12,119,22,13,17,41,46,38,34,23,28,39,40,17,47,0,0,-6,0,0,0,0,0,-14,1,0,
9,-10,-8,-5,0,0,0,0,0,0,0,-24,-1,-26,0,0,0,-9,-10,-18,0,0,32,28,37,39,49,30,67,
76,112,102,178,209,257,252,239,43,150,156,169,171,372,364,398,397,335,307,266,
162,266,266,391,378,612,606,760,536,9152,60,12546,1922,12834,12835,12840,12840,
12842,12843,12844,12844,12845,12845,12846,12847,12847,12845,29990,29991,29991,
29992,29992,12846,12847,12847]} 1. e4 {[%emt 0:00:03] ChessBase II} c5 {
[%emt 0:00:05]} 2. Nf3 {[%emt 0:00:08]} d6 {[%emt 0:00:06]} 3. d4 {[%emt 0:00:
00]} cxd4 {[%emt 0:00:07]} 4. Nxd4 {[%emt 0:00:07]} Nf6 {[%emt 0:00:05][%cal
Yg8f6,Yf6d7,Yd7c5]} 5. Nc3 {[%emt 0:00:09]} a6 {[%emt 0:00:05]} 6. h3 {[%emt 0:
00:22]} e6 {[%emt 0:00:16]} 7. g4 {[%emt 0:00:12]} Be7 {[%emt 0:00:07] B81:
Sicilian Scheveningen: Keres Attack.} 8. g5 {[%emt 0:01:02]} Nfd7 {[%emt 0:00:
06]} 9. Be3 {[%emt 0:00:26]} b5 {[%emt 0:05:16] White is slightly better.} (
9... Bxg5 10. Nxe6 $1 fxe6 11. Qh5+ g6 12. Qxg5 $16) 10. a3 {[%emt 0:00:00]}
Bb7 {[%emt 0:00:22]} ({Don't do} 10... Bxg5 {[#]} 11. Nxe6 $1 fxe6 12. Qh5+ g6
13. Qxg5 $16) 11. h4 {[%emt 0:01:16]} Nc6 {[%emt 0:00:00]} 12. Qd2 {[%emt 0:00:
52]} Nc5 {[%emt 0:20:25] [#]} 13. f4 $146 {[%emt 0:00:00]} (13. f3 $14) ({
Predecessor:} 13. f3 O-O 14. O-O-O Ne5 15. Rg1 Rc8 16. h5 d5 17. g6 hxg6 18. f4
Nc4 19. Bxc4 dxc4 20. hxg6 fxg6 21. Rxg6 {1-0 (30) Navara,D (2751)
-Solodovnichenko,Y (2592) Montpellier 2015 CBM 166 Extra [ChessBase II]}) 13...
O-O {[%emt 0:01:10]} 14. Rh3 {[%emt 0:07:15]} Nxd4 {[%emt 0:21:01]} 15. Bxd4 {
[%emt 0:01:33]} e5 {[%emt 0:01:13]} 16. Bxc5 {[%emt 0:15:53]} dxc5 {[%emt 0:00:
02]} 17. O-O-O {[%emt 0:00:13]} exf4 {[%emt 0:00:00]} 18. Qxf4 {[%emt 0:03:54]}
Qb8 {[%emt 0:00:58]} 19. Qxb8 {[%emt 0:07:50]} Raxb8 {[%emt 0:01:22]} 20. Nd5 {
[%emt 0:00:07]} Bd8 {[%emt 0:08:46]} 21. Rf3 {[%emt 0:04:18]} Re8 {[%emt 0:02:
09]} 22. Rf4 {[%emt 0:00:28]} Bc6 {[%emt 0:00:00]} 23. Bh3 {[%emt 0:04:00]} a5
{[%emt 0:02:12]} 24. Rdf1 {[%emt 0:04:40]} Rb7 {[%emt 0:00:13]} 25. Bg4 {
[%emt 0:05:57]} c4 {[%emt 0:07:04]} 26. c3 {[%emt 0:00:00]} g6 {[%emt 0:06:36]
[%cal Yh7h6]} 27. Bh3 {[%emt 0:04:29]} Kg7 {[%emt 0:00:00]} 28. Rd1 {[%emt 0:
04:57]} h6 {[%emt 0:03:13]} 29. Nf6 $1 {[%emt 0:01:21]} Bxf6 {[%emt 0:01:27]} (
29... Rf8 {is more complex.} 30. gxh6+ Kxh6 31. Bd7 Bxf6 32. Bxc6 Be5) 30.
gxf6+ {[%emt 0:00:18]} Kg8 {[%emt 0:01:11]} 31. Rd4 {[%emt 0:00:35]} Rbb8 {
[%emt 0:01:10]} 32. Kd2 $1 {[%emt 0:01:17]} Rbd8 {[%emt 0:01:20]} 33. Ke3 $1 {
[%emt 0:01:04]} Kf8 {[%emt 0:03:47]} 34. Bg2 {[%emt 0:01:45]} Bd7 {[%emt 0:01:
01]} (34... Rb8 $16) 35. Rf2 $18 {[%emt 0:00:00] And now Rfd2 would win.} Be6 {
[%emt 0:00:13]} 36. Rfd2 {[%emt 0:00:26]} Rb8 {[%emt 0:00:26]} (36... Rxd4 37.
cxd4 Rc8 38. Rc2 $16) 37. Bf1 $2 {[%emt 0:00:00]} ({White should play} 37. Kf4
$18) 37... Rbc8 {[%emt 0:01:01]} (37... b4 $14) 38. Kf4 {[%emt 0:00:27] White
is more active.} Rc5 {[%emt 0:00:49]} 39. Rd8 {[%emt 0:00:52]} g5+ $2 {[%emt 0:
01:16]} (39... b4 40. e5 (40. cxb4 axb4 41. axb4 Rh5 $16) 40... bxc3 41. bxc3
g5+ 42. hxg5 hxg5+ 43. Ke4 (43. Kxg5 Rxe5+ 44. Kh4 Re4+ 45. Kg3 Rg4+ 46. Kh2
Rf4 $11) 43... Rc8) 40. hxg5 {[%emt 0:00:00]} hxg5+ {[%emt 0:00:30]} 41. Ke3 {
[%emt 0:06:31][%cal Yd2h2] White wants to mate with Rh2!} Rc8 {[%emt 0:01:22] 
[#]} 42. Rh2 $1 {[%emt 0:04:14][%cal Rh2h8]} Kg8 {[%emt 0:00:10] Prevents Rh8+.
} 43. Rxe8+ {[%emt 0:00:09]} Rxe8 {[%emt 0:00:10] Endgame KRB-KRB} 44. Rh5 {
[%emt 0:00:04]} Rb8 {[%emt 0:10:38]} (44... g4 $142 45. Be2 (45. Rxb5 Kh7 $18)
45... Bd7 46. Rg5+ Kf8 47. Bxg4 Bxg4) 45. Rxg5+ {[%emt 0:03:21]} Kh7 $2 {
[%emt 0:00:18]} (45... Kf8 46. Bg2 Rb6) 46. Be2 {[%emt 0:01:19]} Rb6 {[%emt 0:
04:03]} 47. Bf3 {[%emt 0:01:58] Threatens to win with Rg7+.} Kh6 {[%emt 0:02:
30]} 48. Rh5+ {[%emt 0:05:28]} Kg6 {[%emt 0:01:04] Loses the game.} 49. e5 {
[%emt 0:00:15][%cal Ye4e5,Ye5f6] Intending Kf4 and mate.} Bd5 {[%emt 0:07:39]}
50. Bd1 {[%emt 0:01:25]} b4 {[%emt 0:02:25]} 51. axb4 {[%emt 0:01:55]} axb4 {
[%emt 0:00:06]} 52. Kf4 {[%emt 0:00:54]} bxc3 {[%emt 0:02:04]} 53. Rh8 {
[%emt 0:00:36][%csl Gh8][%cal Rd1h5]} Rxf6+ {[%emt 0:02:07]} 54. exf6 {[%emt 0:
00:00]} cxb2 {[%emt 0:00:06]} 55. Rb8 {[%emt 0:01:37]} c3 {[%emt 0:00:55]} 56.
Ke5 {[%emt 0:00:48]} Be6 {[%emt 0:02:03]} 57. Bc2+ {[%emt 0:00:33]} Kg5 {
[%emt 0:00:42]} 58. Rg8+ {[%emt 0:01:17]} Kh4 {[%emt 0:00:38]} 59. Rg1 {
[%emt 0:00:21]} (59. Kf4 $142 Kh3 60. Be4 Kh2 61. Rg2+ Kh3 62. Rg1 b1=Q 63.
Rxb1 Kh4 64. Rh1+ Bh3 65. Bf5 Kh5 66. Rxh3#) 59... Ba2 {[%emt 0:00:36]} 60. Kd4
{[%emt 0:00:26] Weighted Error Value: White=0.15 (very precise) /Black=0.43}
1-0